bitfinex-derivatives/quotes_SOLF0:USTF0_20220104
["timestamp","ask_amount","ask_price","bid_price","bid_amount"]
[1641300445306,43.2716,170.9,170.89,0.0001]
[1641300445504,55.58055331,170.9,170.89,0.0001]
[1641300445904,83.24534331,170.9,170.89,0.0001]
[1641300446104,86.54320584,170.9,170.89,0.0001]
[1641300446405,85.35749398,170.9,170.89,0.0001]
[1641300447405,118.37937731,170.9,170.89,0.0001]
[1641300448105,85.35749398,170.9,170.89,0.0001]
[1641300448305,98.42276765,170.9,170.89,0.0001]
[1641300452612,103.46876765,170.9,170.89,0.0001]
[1641300454713,98.42276765,170.9,170.89,0.0001]
[1641300456516,98.42276765,170.9,170.89,4.9651]
[1641300456716,24.18851512,170.9,170.89,4.9651]
[1641300457218,11.12324145,170.9,170.89,4.9651]
[1641300457617,11.12324145,170.9,170.89,0.0001]
[1641300458019,11.12324145,170.91,170.89,0.0001]
[1641300458517,43.7392,170.9,170.89,0.0001]
[1641300459319,49.2752,170.9,170.89,0.0001]
[1641300459519,63.6963503,170.9,170.89,0.0001]
[1641300460623,76.76171517,170.9,170.89,0.0001]
[1641300469026,63.6963503,170.9,170.89,0.0001]
[1641300469226,96.67530603,170.9,170.89,0.0001]
[1641300469626,91.13930603,170.9,170.89,0.0001]
[1641300469828,17.89071086,170.9,170.89,0.0001]
[1641300473730,5.5841131,170.9,170.89,0.0001]
[1641300473930,38.56306883,170.9,170.89,0.0001]
[1641300474331,44.02406883,170.9,170.89,0.0001]
[1641300474932,49.87578631,170.9,170.89,0.0001]
[1641300475434,16.89683058,170.9,170.89,0.0001]
[1641300477435,66.42932123,170.9,170.89,0.0001]
[1641300478637,0.0199,170.88,170.77,4.12365863]
[1641300478838,16.89683058,170.9,170.76,4.12365863]
[1641300479037,3.29790885,170.89,170.76,4.12365863]
[1641300479540,12.37184199,170.79,170.76,4.12365863]
[1641300480339,45.1735,170.82,170.76,4.12365863]
[1641300480539,11.10714627,170.81,170.76,4.12365863]
[1641300480739,27.66479,170.8,170.76,4.12365863]
[1641300481438,14.65807528,170.79,170.76,4.12365863]
[1641300482638,45.1735,170.82,170.76,4.12365863]
[1641300482938,11.1661257,170.81,170.76,4.12365863]
[1641300484140,12.37173777,170.8,170.76,4.12365863]
[1641300485843,12.37173777,170.79,170.76,4.12365863]
[1641300486443,12.37173777,170.79,170.73,1.81985556]
[1641300486444,11.1661257,170.81,170.75,4.12365863]
[1641300486642,27.66479,170.8,170.75,4.12365863]
[1641300487443,11.1661257,170.81,170.75,4.12365863]
[1641300487644,2.29550031,170.81,170.75,4.12365863]
[1641300487844,14.66767735,170.79,170.75,4.12365863]
[1641300488044,14.66767735,170.79,170.76,6.0]
[1641300488544,14.66767735,170.79,170.76,10.12365863]
[1641300488747,12.37217704,170.79,170.76,10.12365863]
[1641300489444,2.29550031,170.79,170.76,10.12365863]
[1641300489646,2.29550031,170.79,170.76,1e-08]
[1641300490448,27.66479,170.8,170.72,12.36933987]
[1641300490647,27.66479,170.75,170.72,12.36933987]
[1641300490848,34.11579,170.75,170.71,1.79118538]
[1641300491049,41.96390939,170.79,170.71,1.79118538]
[1641300491249,41.96390939,170.79,170.71,7.72718538]
[1641300491849,12.37437647,170.76,170.71,5.936]
[1641300492649,40.03916647,170.76,170.71,5.936]
[1641300492851,27.66479,170.76,170.71,5.936]
[1641300493050,12.37473475,170.75,170.71,5.936]
[1641300493854,2.2965596,170.75,170.72,1.82825326]
[1641300494453,12.37406604,170.77,170.72,1.82825326]
[1641300494653,12.37406604,170.76,170.69,17.58333987]
[1641300495255,11.17044204,170.77,170.7,1.82825326]
[1641300495557,27.66479,170.76,170.7,1.82825326]
[1641300496055,11.17044204,170.77,170.7,1.82825326]
[1641300496555,2.29652693,170.77,170.7,1.82825326]
[1641300496757,2.29652693,170.75,170.7,1.82825326]
[1641300497157,11.30622213,170.77,170.7,1.82825326]
[1641300497658,27.66479,170.76,170.7,1.82825326]
[1641300500057,14.70837173,170.75,170.68,14.19759313]
[1641300500860,40.03906895,170.76,170.68,21.8227414]
[1641300501058,40.03906895,170.76,170.68,28.5897414]
[1641300501659,14.70809812,170.75,170.69,1.82825326]
[1641300502459,44.7037,170.78,170.69,1.82825326]
[1641300502760,14.70657867,170.77,170.7,12.36933987]
[1641300503360,44.7037,170.78,170.69,14.19759313]
[1641300503761,44.7037,170.78,170.72,27.66479]
[1641300503961,44.7037,170.78,170.72,34.19379]
[1641300504362,2.33309463,170.77,170.72,34.19379]
[1641300505168,12.37302378,170.77,170.73,1.82825326]
[1641300505967,12.37272321,170.78,170.73,1.82825326]
[1641300507968,27.66479,170.77,170.73,1.82825326]
[1641300508167,33.60579,170.77,170.73,1.82825326]
[1641300508968,23.67820333,170.76,170.69,46.15855326]
[1641300509768,2.3329744,170.76,170.7,1.82825326]
[1641300509968,2.3329744,170.76,170.7,29.49304326]
[1641300510570,7.44e-05,170.76,170.7,40.43658953]
[1641300510767,7.44e-05,170.76,170.73,135.50669019]
[1641300510969,32.99157863,170.81,170.74,5.85000585]
[1641300511172,32.99157863,170.81,170.74,11.32600585]
[1641300512069,32.99157863,170.81,170.79,27.66479]
[1641300513270,41.95894174,170.86,170.79,27.66479]
[1641300513673,41.95894174,170.86,170.79,33.44079]
[1641300514068,32.99157863,170.86,170.79,33.44079]
[1641300514270,27.66479,170.87,170.79,5.776]
[1641300514769,3.29869078,170.86,170.79,5.776]
[1641300517471,3.29869078,170.86,170.76,27.66479]
[1641300517673,3.29869078,170.86,170.79,6.0]
[1641300518171,27.66479,170.84,170.79,6.0]
[1641300522879,3.29923118,170.83,170.79,6.0]
[1641300523479,27.66479,170.84,170.79,6.0]
[1641300523879,3.29931732,170.83,170.79,6.0]
[1641300524183,27.66479,170.81,170.79,6.0]
[1641300524682,38.9383,170.85,170.79,6.0]
[1641300525082,3.29925545,170.84,170.79,6.0]
[1641300526287,27.66479,170.8,170.79,6.0]
[1641300527087,21.0663022,170.8,170.79,6.0]
[1641300527287,25.6823022,170.8,170.79,6.0]
[1641300528287,25.6823022,170.8,170.68,27.66479]
[1641300528487,38.6998,170.79,170.68,27.66479]
[1641300528687,47.85484018,170.79,170.67,41.8813]
[1641300528889,47.85484018,170.79,170.68,33.02188333]
[1641300529088,3.29989644,170.78,170.68,33.02188333]
[1641300530290,27.66479,170.74,170.65,7.87901105]
[1641300530490,40.358,170.73,170.65,7.87901105]
[1641300533595,27.66479,170.74,170.65,7.87901105]
[1641300533795,32.99157863,170.76,170.65,7.87901105]
[1641300534296,32.99157863,170.76,170.67,27.66479]
[1641300534496,27.66479,170.77,170.67,32.87879]
[1641300535098,27.66479,170.77,170.68,7.87901105]
[1641300535997,27.66479,170.77,170.67,27.66479]
[1641300539004,27.66479,170.77,170.67,33.66479]
[1641300542106,41.801,170.79,170.67,33.66479]
[1641300542307,41.801,170.79,170.72,27.66479]
[1641300542508,41.801,170.79,170.72,33.07179]
[1641300543710,54.09415617,170.79,170.72,33.07179]
[1641300544310,81.75894617,170.79,170.72,33.07179]
[1641300544510,81.75894617,170.79,170.72,27.66479]
[1641300546315,12.29315617,170.78,170.72,27.66479]
[1641300546513,18.01615617,170.78,170.72,27.66479]
[1641300547313,12.29315617,170.77,170.72,27.66479]
[1641300547514,12.29315617,170.77,170.72,33.66479]
[1641300548014,12.29315617,170.76,170.72,33.66479]
[1641300548817,12.29315617,170.76,170.72,6.0]
[1641300549015,12.29315617,170.77,170.72,6.0]
[1641300549816,12.29315617,170.78,170.72,6.0]
[1641300550016,12.29315617,170.78,170.72,46.9864]
[1641300550217,12.29315617,170.78,170.72,6.0]
[1641300550416,12.29315617,170.78,170.72,33.66479]
[1641300550816,12.29315617,170.79,170.75,4.12421692]
[1641300552323,12.29315617,170.78,170.74,4.12421692]
[1641300553924,16.80415617,170.78,170.74,4.12421692]
[1641300554628,2.26008225,170.77,170.75,4.12421692]
[1641300556226,2.26008225,170.77,170.74,4.12421692]
[1641300557527,12.29315617,170.78,170.74,4.12421692]
[1641300558730,39.95794617,170.78,170.74,4.12421692]
[1641300559733,2.26008225,170.77,170.74,4.12421692]
[1641300561134,2.26008225,170.77,170.75,4.12421692]
[1641300561638,12.29315617,170.78,170.75,10.93321692]
[1641300562734,14.55323842,170.8,170.75,6.809]
[1641300562934,14.55323842,170.8,170.73,4.12421692]
[1641300563134,18.75023842,170.8,170.73,4.12421692]
[1641300563334,18.75023842,170.8,170.73,5.98436798]
[1641300564036,2.26008225,170.79,170.73,5.98436798]
[1641300564736,14.55323842,170.8,170.73,5.98436798]
[1641300566338,12.29315617,170.78,170.75,4.12421692]
[1641300566938,16.91215617,170.78,170.75,4.12421692]
[1641300567139,4.619,170.78,170.75,4.12421692]
[1641300567939,14.55323842,170.77,170.74,4.12421692]
[1641300568739,2.26008225,170.77,170.74,4.12421692]
[1641300569541,12.29315617,170.78,170.74,4.12421692]
[1641300571645,14.55323842,170.8,170.76,4.12421692]
[1641300576355,12.29315617,170.79,170.75,4.12421692]
[1641300577556,12.29315617,170.79,170.76,6.0]
[1641300578257,12.29315617,170.79,170.75,4.12421692]
[1641300578457,12.29315617,170.79,170.73,1.86015106]
[1641300578659,12.29315617,170.77,170.69,12.29315617]
[1641300578857,40.1893,170.76,170.69,12.29315617]
[1641300579258,27.66479,170.74,170.69,12.29315617]
[1641300579859,27.66479,170.74,170.67,21.7428913]
[1641300580960,2.26008225,170.73,170.67,21.7428913]
[1641300582261,8.35308225,170.73,170.67,21.7428913]
[1641300583162,8.35308225,170.73,170.68,12.29315617]
[1641300583664,6.093,170.73,170.68,12.29315617]
[1641300584364,40.1893,170.76,170.69,12.29315617]
[1641300585163,2.29277049,170.75,170.68,1.82720812]
[1641300585564,2.29277049,170.75,170.7,27.66479]
[1641300586965,54.44912666,170.79,170.71,1.82720812]
[1641300587765,2.29277049,170.78,170.71,1.82720812]
[1641300588669,12.29315617,170.8,170.71,1.82720812]
[1641300589371,14.58542856,170.8,170.71,1.82720812]
[1641300589972,14.58542856,170.8,170.73,27.66479]
[1641300590375,14.58542856,170.8,170.71,1.82720812]
[1641300592077,14.58542856,170.8,170.73,27.66479]
[1641300592575,12.29315617,170.79,170.74,1.82720812]
[1641300593475,11.16704503,170.8,170.74,1.82720812]
[1641300594077,12.37237108,170.79,170.74,1.82720812]
[1641300594678,11.16704503,170.8,170.74,1.82720812]
[1641300595279,12.37232646,170.79,170.71,21.7420907]
[1641300596279,38.5955,170.78,170.71,21.7420907]
[1641300596881,2.29227239,170.77,170.71,21.7420907]
[1641300597381,38.5955,170.78,170.71,21.7420907]
[1641300597980,38.5955,170.78,170.72,27.66479]
[1641300598181,2.29700664,170.77,170.72,27.66479]
[1641300599181,38.5955,170.78,170.72,27.66479]
[1641300599381,50.96820226,170.78,170.73,1.82720812]
[1641300600284,2.29715017,170.77,170.73,1.82720812]
[1641300601385,50.96821254,170.78,170.73,1.82720812]
[1641300602291,2.29725268,170.77,170.71,1.82720812]
[1641300602889,50.96827844,170.78,170.71,21.74211079]
[1641300603795,38.5955,170.78,170.71,14.12036429]
[1641300603992,2.29728849,170.77,170.71,1.82720812]
[1641300604591,38.5955,170.78,170.71,1.82720812]
[1641300604792,50.96828768,170.78,170.71,21.7421112]
[1641300605995,2.29717572,170.77,170.71,21.7421112]
[1641300606195,2.29717572,170.77,170.72,27.66479]
[1641300606798,38.5955,170.78,170.73,1.82720812]
[1641300607397,2.29710469,170.77,170.73,1.82720812]
[1641300608097,38.5955,170.78,170.73,1.82720812]
[1641300608900,2.29711725,170.77,170.73,1.82720812]
[1641300609600,38.5955,170.78,170.73,1.82720812]
[1641300610500,31.99659556,170.78,170.73,1.82720812]
[1641300614909,2.3560672,170.77,170.73,1.82720812]
[1641300618411,6.72e-05,170.77,170.73,1.82720812]
[1641300618613,40.00257421,170.8,170.73,21.58383031]
[1641300619313,27.66479,170.8,170.73,1.82720812]
[1641300620216,12.33778421,170.83,170.73,1.82720812]
[1641300621316,12.33778421,170.83,170.78,27.66479]
[1641300622017,12.33778421,170.84,170.78,27.66479]
[1641300622416,12.33778421,170.84,170.73,12.29315617]
[1641300623316,12.33778421,170.84,170.75,27.66479]
[1641300629719,12.33778421,170.83,170.75,27.66479]
[1641300633423,12.33778421,170.83,170.74,40.0748]
[1641300633923,12.33778421,170.83,170.76,27.66479]
[1641300635623,12.33778421,170.83,170.74,40.0748]
[1641300636427,12.33778421,170.82,170.73,27.66479]
[1641300636827,40.9825,170.81,170.73,27.66479]
[1641300637626,40.9825,170.81,170.74,6.0]
[1641300638026,40.9825,170.81,170.76,27.66479]
[1641300638928,4.113801,170.8,170.76,4.113801]
[1641300639527,12.33778421,170.8,170.76,4.113801]
[1641300641230,12.33778421,170.8,170.77,4.113801]
[1641300641430,53.32028421,170.81,170.77,4.113801]
[1641300642433,53.32028421,170.81,170.76,4.113801]
[1641300642634,12.33778421,170.8,170.76,4.113801]
[1641300642934,17.17978421,170.8,170.76,4.113801]
[1641300643834,17.17978421,170.8,170.75,4.113801]
[1641300643835,4.842,170.8,170.75,4.113801]
[1641300644035,53.32028421,170.81,170.75,4.113801]
[1641300646837,12.33778421,170.81,170.75,8.428801]
[1641300647941,12.33778421,170.83,170.77,4.113801]
[1641300648140,12.33778421,170.83,170.77,31.778591]
[1641300649040,12.33778421,170.83,170.78,4.113801]
[1641300649843,12.33778421,170.83,170.79,4.113801]
[1641300650040,12.33778421,170.83,170.79,10.547801]
[1641300651040,12.33778421,170.82,170.79,10.547801]
[1641300651642,12.33778421,170.83,170.79,10.547801]
[1641300652444,12.33778421,170.85,170.81,4.113801]
[1641300653143,12.33778421,170.83,170.79,4.113801]
[1641300654444,12.33778421,170.84,170.8,4.113801]
[1641300655143,12.33778421,170.83,170.8,4.113801]
[1641300657049,12.33778421,170.84,170.8,4.113801]
[1641300658350,12.33778421,170.84,170.79,4.113801]
[1641300658550,12.33778421,170.83,170.79,4.113801]
[1641300659151,12.33778421,170.83,170.79,5.9028185]
[1641300663655,16.89378421,170.83,170.79,5.9028185]
[1641300664155,14.67264774,170.82,170.78,31.778591]
[1641300665855,8.97573935,170.85,170.78,31.778591]
[1641300665856,12.33778421,170.81,170.78,31.778591]
[1641300666558,12.33778421,170.82,170.78,31.778591]
[1641300667559,12.33778421,170.81,170.78,33.66479]
[1641300667760,12.33778421,170.81,170.78,6.0]
[1641300668562,12.33778421,170.81,170.78,33.66479]
[1641300668762,12.33778421,170.82,170.78,37.778591]
[1641300669762,4.11557257,170.79,170.78,33.66479]
[1641300671365,4.11557257,170.79,170.78,6.0]
[1641300671566,6.672,170.8,170.78,6.0]
[1641300672269,4.11571724,170.79,170.78,6.0]
[1641300673567,53.92408421,170.82,170.78,6.0]
[1641300674268,14.67259268,170.81,170.78,10.113801]
[1641300675070,41.5863,170.82,170.78,6.0]
[1641300675771,14.70645811,170.81,170.78,6.0]
[1641300676470,53.95755754,170.82,170.78,10.113801]
[1641300676971,12.37125754,170.82,170.78,10.113801]
[1641300677570,4.12363857,170.79,170.78,10.113801]
[1641300678772,4.12363857,170.79,170.78,37.778591]
[1641300678971,12.37125754,170.82,170.78,33.66479]
[1641300679171,43.1319,170.85,170.78,33.66479]
[1641300679371,4.12332331,170.8,170.78,35.45391904]
[1641300679873,14.70416421,170.84,170.79,1.78912904]
[1641300680675,12.36996994,170.83,170.79,5.91263096]
[1641300681383,12.36996994,170.83,170.78,33.66479]
[1641300681384,12.36996994,170.81,170.78,33.66479]
[1641300682475,17.08528515,170.84,170.78,33.66479]
[1641300682676,12.37206037,170.8,170.78,33.66479]
[1641300683478,12.37206037,170.8,170.78,6.0]
[1641300688081,12.37206037,170.82,170.78,10.12350192]
[1641300688281,12.37206037,170.82,170.78,16.41350192]
[1641300688982,12.37206037,170.82,170.8,27.66479]
[1641300689481,12.37206037,170.82,170.8,31.78829192]
[1641300689681,14.70625464,170.84,170.8,31.78829192]
[1641300690883,43.1319,170.85,170.8,31.78829192]
[1641300691687,2.33408159,170.84,170.8,31.78829192]
[1641300691886,14.70376982,170.84,170.8,31.78829192]
[1641300692487,43.1319,170.85,170.8,31.78829192]
[1641300693288,14.70391902,170.84,170.8,31.78829192]
[1641300695491,2.33412422,170.84,170.8,31.78829192]
[1641300695690,43.1319,170.85,170.8,31.78829192]
[1641300696192,43.1319,170.85,170.8,4.12350192]
[1641300696593,14.70361422,170.84,170.8,4.12350192]
[1641300697194,14.70361422,170.84,170.81,27.66479]
[1641300697894,14.70361422,170.84,170.8,10.12350192]
[1641300698096,43.1319,170.85,170.8,10.12350192]
[1641300698897,12.36983796,170.83,170.8,10.12350192]
[1641300699096,12.36983796,170.83,170.81,27.66479]
[1641300699700,2.33414148,170.84,170.81,27.66479]
[1641300699898,14.70377213,170.84,170.81,27.66479]
[1641300700900,12.36963065,170.84,170.81,27.66479]
[1641300702399,11.3068398,170.86,170.81,27.66479]
[1641300703000,12.3696751,170.84,170.81,27.66479]
[1641300703902,12.3696751,170.83,170.81,27.66479]
[1641300705804,11.3068398,170.86,170.81,27.66479]
[1641300706405,12.37015203,170.83,170.81,27.66479]
[1641300706604,12.37015203,170.83,170.8,6.0]
[1641300707206,12.37079061,170.82,170.8,6.0]
[1641300708305,44.29841843,170.86,170.8,6.0]
[1641300708907,12.37035596,170.83,170.8,6.0]
[1641300710710,12.37035596,170.82,170.8,6.0]
[1641300711324,12.37022053,170.83,170.8,6.0]
[1641300712912,11.3068398,170.86,170.8,6.0]
[1641300713611,12.37020829,170.83,170.8,6.0]
[1641300715716,12.37020829,170.82,170.8,6.0]
[1641300715916,12.37020829,170.82,170.8,33.66479]
[1641300716315,44.29841843,170.86,170.8,33.66479]
[1641300717114,44.29841843,170.86,170.8,6.0]
[1641300717315,12.37055156,170.82,170.8,6.0]
[1641300717615,18.83655156,170.82,170.8,6.0]
[1641300718017,6.466,170.82,170.8,6.0]
[1641300718318,2.33414148,170.81,170.8,6.0]
[1641300719219,27.66479,170.85,170.8,6.0]
[1641300719419,12.37139565,170.81,170.8,6.0]
[1641300720122,11.30743321,170.84,170.8,6.0]
[1641300720824,12.37131911,170.81,170.8,6.0]
[1641300721726,35.32631352,170.85,170.8,6.0]
[1641300722027,62.99110352,170.85,170.8,6.0]
[1641300722626,12.37132002,170.81,170.8,2.57524877]
[1641300723126,11.30743321,170.84,170.8,2.57524877]
[1641300723926,12.37144897,170.81,170.8,2.57524877]
[1641300725228,14.70618386,170.81,170.8,2.57524877]
[1641300730836,14.70618386,170.81,170.8,6.71224877]
[1641300731340,12.37144897,170.83,170.8,6.71224877]
[1641300732039,12.37144897,170.82,170.8,6.71224877]
[1641300732639,12.37144897,170.81,170.8,6.71224877]
[1641300733341,44.28559505,170.85,170.8,6.71224877]
[1641300733944,12.37090369,170.81,170.8,6.71224877]
[1641300734844,12.37090589,170.82,170.8,6.71224877]
[1641300736747,12.37090589,170.81,170.8,6.71224877]
[1641300737846,44.28559505,170.85,170.8,6.71224877]
[1641300738446,12.37094021,170.82,170.8,6.71224877]
[1641300742751,12.37094021,170.81,170.8,6.71224877]
[1641300743554,11.29401642,170.84,170.8,6.71224877]
[1641300744354,12.37049091,170.81,170.8,6.71224877]
[1641300745157,11.29401642,170.84,170.8,6.71224877]
[1641300745656,12.35760596,170.83,170.8,6.71224877]
[1641300751174,12.35760596,170.82,170.8,6.71224877]
[1641300752078,12.35760596,170.83,170.8,6.71224877]
[1641300752873,12.35760596,170.84,170.8,6.71224877]
[1641300753272,12.35760596,170.84,170.81,27.66479]
[1641300753671,12.35760596,170.85,170.81,27.66479]
[1641300754373,12.35760596,170.86,170.81,31.78829192]
[1641300757578,12.35760596,170.86,170.81,34.36354069]
[1641300760683,12.35760596,170.85,170.81,34.36354069]
[1641300762285,11.29401642,170.87,170.81,34.36354069]
[1641300762785,12.3681332,170.85,170.81,34.36354069]
[1641300763290,11.29401642,170.87,170.81,34.36354069]
[1641300763486,11.29401642,170.87,170.81,6.69875069]
[1641300764287,12.36815137,170.85,170.81,6.69875069]
[1641300765087,11.29401642,170.87,170.81,6.69875069]
[1641300765288,11.29401642,170.87,170.81,12.78875069]
[1641300765488,12.36813534,170.85,170.81,12.78875069]
[1641300765992,14.70287023,170.85,170.81,12.78875069]
[1641300767189,14.70287023,170.85,170.81,6.69875069]
[1641300767390,42.36766023,170.85,170.81,6.69875069]
[1641300767592,12.36813534,170.82,170.81,2.57524877]
[1641300768493,11.30785144,170.84,170.81,2.57524877]
[1641300769293,12.37022067,170.82,170.81,2.57524877]
[1641300776109,11.30785144,170.84,170.81,2.57524877]
[1641300780111,27.66479,170.82,170.81,2.57524877]
[1641300780913,38.97264144,170.82,170.81,2.57524877]
[1641300784515,11.30785144,170.82,170.81,2.57524877]
[1641300784716,2.33473489,170.82,170.81,2.57524877]
[1641300784915,14.70518437,170.82,170.81,2.57524877]
[1641300785715,12.37044948,170.83,170.81,2.57524877]
[1641300785916,12.37044948,170.83,170.81,6.80324877]
[1641300787818,11.30777362,170.85,170.81,6.80324877]
[1641300788019,14.70325556,170.85,170.81,10.92675069]
[1641300788219,14.70325556,170.85,170.81,38.59154069]
[1641300790021,14.70325556,170.85,170.81,10.92675069]
[1641300791122,12.36852067,170.83,170.81,6.80324877]
[1641300791926,11.30759212,170.85,170.81,6.80324877]
[1641300792831,12.36921495,170.84,170.81,6.80324877]
[1641300793833,14.70394984,170.85,170.81,10.92675069]
[1641300794033,12.36924984,170.85,170.81,10.92675069]
[1641300794234,12.36924984,170.85,170.84,27.66479]
[1641300794635,12.36624131,170.88,170.84,31.78829192]
[1641300795835,12.36551398,170.89,170.85,4.12350192]
[1641300796035,12.36551398,170.89,170.85,10.59650192]
[1641300796535,8.91261726,170.91,170.85,10.59650192]
[1641300797641,12.36586452,170.88,170.85,10.59650192]
[1641300798240,12.36565026,170.89,170.85,10.59650192]
[1641300799742,8.91261726,170.91,170.85,10.59650192]
[1641300799743,12.36565026,170.87,170.85,6.473]
[1641300799947,12.36565026,170.87,170.83,4.12350192]
[1641300800545,27.66479,170.9,170.83,4.12350192]
[1641300801144,12.36669093,170.87,170.83,4.12350192]
[1641300801644,8.91261726,170.89,170.83,4.12350192]
[1641300802745,12.36671681,170.87,170.83,4.12350192]
[1641300803146,8.91261726,170.89,170.83,4.12350192]
[1641300804347,12.36709826,170.87,170.83,4.12350192]
[1641300805050,12.36709826,170.88,170.84,4.12350192]
[1641300807852,12.36709826,170.87,170.83,4.12350192]
[1641300808550,8.91261726,170.89,170.83,4.12350192]
[1641300809452,12.36676294,170.87,170.83,4.12350192]
[1641300809958,41.90419589,170.91,170.83,4.12350192]
[1641300810355,27.66479,170.87,170.83,4.12350192]
[1641300810555,34.01679,170.87,170.83,4.12350192]
[1641300810855,46.38389356,170.87,170.83,4.12350192]
[1641300811455,12.36710356,170.86,170.82,4.12350192]
[1641300812257,34.01679,170.87,170.82,4.12350192]
[1641300812760,12.36763944,170.86,170.82,4.12350192]
[1641300813557,34.01679,170.87,170.82,4.12350192]
[1641300814257,12.36758873,170.86,170.82,4.12350192]
[1641300814857,34.01679,170.87,170.82,4.12350192]
[1641300815058,34.01679,170.87,170.81,2.57524877]
[1641300815257,34.01679,170.87,170.78,12.29315617]
[1641300815456,38.86685914,170.86,170.78,12.29315617]
[1641300815756,3.29895914,170.85,170.78,12.29315617]
[1641300816359,36.29053777,170.85,170.76,34.2301]
[1641300816560,27.66479,170.83,170.76,34.2301]
[1641300816758,31.85679,170.83,170.73,12.29315617]
[1641300816958,37.4413,170.82,170.73,12.29315617]
[1641300817160,12.37140925,170.8,170.73,12.29315617]
[1641300817761,12.37144748,170.81,170.73,19.86909204]
[1641300817961,12.37144748,170.81,170.73,24.88209204]
[1641300818963,37.4413,170.82,170.73,24.88209204]
[1641300819865,12.37145855,170.81,170.73,24.88209204]
[1641300820265,37.4413,170.82,170.73,24.88209204]
[1641300821068,32.99157863,170.85,170.73,24.88209204]
[1641300821268,35.5613,170.84,170.73,24.88209204]
[1641300821466,32.99157863,170.85,170.73,24.88209204]
[1641300821767,12.37134057,170.81,170.73,24.88209204]
[1641300822467,12.36954416,170.83,170.79,27.66479]
[1641300823468,9.01574014,170.85,170.79,27.66479]
[1641300824168,34.9046,170.86,170.79,27.66479]
[1641300824372,12.36854457,170.85,170.79,27.66479]
[1641300824771,12.36854457,170.85,170.79,33.66479]
[1641300826573,12.36854457,170.84,170.79,33.66479]
[1641300827272,9.0150772,170.85,170.79,33.66479]
[1641300828073,12.36932943,170.83,170.79,33.66479]
[1641300829175,12.3691777,170.84,170.79,33.66479]
[1641300829374,12.3691777,170.84,170.79,39.12979]
[1641300831778,47.2737777,170.86,170.79,39.12979]
[1641300833378,47.2737777,170.86,170.79,11.465]
[1641300834581,2.34085572,170.85,170.79,11.465]
[1641300834780,2.34085572,170.85,170.79,39.12979]
[1641300835386,12.3691777,170.84,170.8,1.77309467]
[1641300836288,12.3691777,170.83,170.79,39.12979]
[1641300836988,12.3691777,170.84,170.8,1.77311383]
[1641300837889,11.35619968,170.85,170.8,1.77311383]
[1641300838589,12.36879303,170.84,170.8,1.77311383]
[1641300839793,11.35619968,170.85,170.8,1.77311383]
[1641300840394,12.3688167,170.84,170.8,1.77311383]
[1641300841895,11.35619968,170.85,170.8,1.77311383]
[1641300842300,12.36879172,170.84,170.8,1.77311383]
[1641300843097,12.36879172,170.84,170.83,27.66479]
[1641300843299,12.36879172,170.84,170.83,33.81679]
[1641300843497,2.34085572,170.85,170.83,33.81679]
[1641300843699,14.70881975,170.85,170.83,33.81679]
[1641300844099,34.9046,170.86,170.83,33.81679]
[1641300845302,14.71741434,170.85,170.83,33.81679]
[1641300845502,1.434e-05,170.85,170.83,33.81679]
[1641300845901,32.99157863,170.89,170.83,33.81679]
[1641300846201,8.65860986,170.92,170.83,33.81679]
[1641300847106,8.65860986,170.92,170.86,27.66479]
[1641300857125,34.6877,170.93,170.86,27.66479]
[1641300857326,66.31999,170.98,170.86,27.66479]
[1641300857327,34.69413651,171.05,170.92,5.83617847]
[1641300857525,123.63204173,171.15,170.92,11.85717847]
[1641300857726,164.96504071,171.29,171.23,1419.11144642]
[1641300857925,49.40462264,171.25,171.23,1425.88244642]
[1641300858926,32.0765421,171.44,171.23,1425.88244642]
[1641300859125,36.7914,171.41,171.23,6.771]
[1641300859326,11.96460257,171.37,171.23,6.771]
[1641300859627,15.25450362,171.37,171.29,27.66479]
[1641300859827,15.25450362,171.37,171.29,32.43979]
[1641300860028,3.28990105,171.36,171.29,32.43979]
[1641300861829,23.03157526,171.37,171.29,4.775]
[1641300862029,23.03157526,171.37,171.26,27.66479]
[1641300863131,34.99617783,171.37,171.26,27.66479]
[1641300863632,27.66479,171.34,171.09,8.76]
[1641300864032,7.09689602,171.34,171.09,8.76]
[1641300864232,23.03157526,171.33,171.09,8.76]
[1641300864432,27.48357526,171.33,171.09,8.76]
[1641300864635,7.74190105,171.33,171.07,57.55]
[1641300864836,37.9281,171.32,171.07,66.17]
[1641300865135,19.60165667,171.37,171.08,57.59010315]
[1641300865337,12.22114799,171.43,171.08,57.59010315]
[1641300865536,164.96504071,171.72,171.58,92.10813865]